bitfinex-derivatives/quotes_BTCF0:USTF0_20250828
["timestamp","ask_amount","ask_price","bid_price","bid_amount"]
[1756391458344,0.01826655,112740.0,112730.0,0.0887013]
[1756391458648,0.01826655,112740.0,112730.0,1.4359079]
[1756391459141,0.01826655,112740.0,112730.0,1.7967079]
[1756391460349,0.01926655,112740.0,112730.0,1.7967079]
[1756391462250,0.05869655,112740.0,112730.0,1.4357879]
[1756391464047,0.03522655,112740.0,112730.0,1.4357879]
[1756391464848,0.01926655,112740.0,112730.0,1.4357879]
[1756391465044,0.03522655,112740.0,112730.0,1.4357079]
[1756391465249,0.05869655,112740.0,112730.0,1.4357079]
[1756391465656,0.01926655,112740.0,112730.0,1.4356679]
[1756391466156,0.01926655,112740.0,112730.0,0.5843479]
[1756391466354,0.01926655,112740.0,112730.0,0.95946078]
[1756391466549,0.01926655,112740.0,112730.0,1.4356679]
[1756391466956,0.01926655,112740.0,112730.0,1.7964679]
[1756391468859,0.04273655,112740.0,112730.0,1.4356679]
[1756391469262,0.05869655,112740.0,112730.0,1.4356679]
[1756391469456,0.03522655,112740.0,112730.0,1.4356679]
[1756391470763,0.05869655,112740.0,112730.0,1.4355079]
[1756391471358,0.05869655,112740.0,112730.0,0.4956466]
[1756391471558,1.14570367,112740.0,112730.0,0.01943948]
[1756391471855,0.41949655,112740.0,112730.0,0.10814078]
[1756391472061,0.03522655,112740.0,112730.0,0.10814078]
[1756391472259,0.03522655,112740.0,112730.0,0.5843479]
[1756391472663,0.41949655,112740.0,112730.0,0.5843479]
[1756391473057,0.05869655,112740.0,112730.0,0.5843479]
[1756391474466,0.41949655,112740.0,112730.0,0.10814078]
[1756391476467,0.05869655,112740.0,112730.0,0.5843479]
[1756391476868,0.05869655,112740.0,112730.0,0.10814078]
[1756391477068,0.05869655,112740.0,112730.0,0.5843479]
[1756391477458,0.03522655,112740.0,112730.0,0.5843479]
[1756391477869,0.05869655,112740.0,112730.0,0.5843479]
[1756391478165,0.03522655,112740.0,112730.0,0.5843479]
[1756391478371,0.01926655,112740.0,112730.0,0.5843479]
[1756391478566,0.03522655,112740.0,112730.0,0.9451479]
[1756391478773,0.01926655,112740.0,112730.0,0.9451479]
[1756391478966,0.05869655,112740.0,112730.0,0.5843479]
[1756391479275,0.05869655,112740.0,112730.0,1.4352679]
[1756391479466,0.01926655,112740.0,112730.0,1.4352679]
[1756391479766,0.01926655,112740.0,112730.0,1.7960679]
[1756391480466,0.001,112740.0,112730.0,1.7960679]
[1756391480771,0.001,112740.0,112730.0,2.0460679]
[1756391482072,0.001,112740.0,112730.0,1.27478371]
[1756391482268,0.001,112740.0,112730.0,2.12562371]
[1756391485473,0.01784106,112760.0,112750.0,0.0886854]
[1756391485670,0.03380106,112760.0,112750.0,1.77641252]
[1756391486768,0.05727106,112760.0,112750.0,1.41557242]
[1756391487276,0.05927106,112760.0,112750.0,1.4882142]
[1756391487466,0.42007106,112760.0,112750.0,0.6375342]
[1756391487773,0.05927106,112760.0,112750.0,1.4881742]
[1756391488168,0.30927106,112760.0,112750.0,0.16132708]
[1756391488363,0.30927106,112760.0,112750.0,1.4881342]
[1756391488670,0.31127106,112760.0,112750.0,1.01192708]
[1756391489073,0.31127106,112760.0,112750.0,1.3994489]
[1756391489270,0.31127106,112760.0,112750.0,1.32680712]
[1756391489465,0.01596,112740.0,112730.0,1.02478351]
[1756391489664,0.01596,112740.0,112730.0,1.87534351]
[1756391490266,0.04039,112740.0,112730.0,1.39913639]
[1756391490471,0.01596,112740.0,112730.0,1.87539079]
[1756391491073,0.04039,112740.0,112730.0,1.51632532]
[1756391491269,0.02443,112750.0,112740.0,0.0886932]
[1756391491477,0.03973,112750.0,112740.0,0.56490032]
[1756391491680,0.03973,112750.0,112740.0,0.64458341]
[1756391491973,0.03973,112750.0,112740.0,0.0886932]
[1756391492279,0.03973,112750.0,112740.0,0.56490032]
[1756391492475,0.03973,112750.0,112730.0,1.51732532]
[1756391492476,0.02443,112740.0,112730.0,1.87638509]
[1756391492778,0.03973,112740.0,112730.0,1.87638509]
[1756391493078,0.03973,112740.0,112730.0,1.39917797]
[1756391493274,0.03973,112740.0,112730.0,1.87538509]
[1756391494480,0.03973,112740.0,112730.0,1.03837797]
[1756391494687,0.03973,112740.0,112730.0,0.66402509]
[1756391495182,0.03973,112740.0,112730.0,1.435742]
[1756391496184,0.03973,112740.0,112730.0,1.434742]
[1756391496481,0.04073,112740.0,112730.0,1.434742]
[1756391497388,0.51693712,112740.0,112730.0,0.10813488]
[1756391497687,0.87773712,112740.0,112730.0,0.86979948]
[1756391498190,1.12773712,112740.0,112730.0,0.01943948]
[1756391498992,0.65153,112740.0,112730.0,0.01943948]
[1756391499292,1.12773712,112740.0,112730.0,0.01943948]
[1756391499687,0.65153,112740.0,112730.0,0.01943948]
[1756391499986,1.12773712,112740.0,112730.0,0.01943948]
[1756391500185,0.65153,112740.0,112730.0,0.01943948]
[1756391500382,1.12773712,112740.0,112730.0,0.01943948]
[1756391500589,1.12773712,112740.0,112700.0,0.199098]
[1756391500793,0.51593712,112710.0,112700.0,1.29975889]
[1756391500994,0.05739518,112710.0,112700.0,1.3088005]
[1756391502090,0.03296518,112710.0,112700.0,1.3088005]
[1756391502296,0.05739518,112710.0,112700.0,1.78500762]
[1756391502594,0.05739518,112710.0,112700.0,1.78800762]
[1756391502993,0.05739518,112710.0,112700.0,1.3118005]
[1756391503989,0.05739518,112710.0,112700.0,1.3138005]
[1756391504198,0.8944023,112710.0,112700.0,0.005]
[1756391504595,0.8944023,112710.0,112700.0,0.003]
[1756391504796,0.8944023,112710.0,112700.0,0.005]
[1756391505490,1.1444023,112710.0,112700.0,0.005]
[1756391505997,1.1444023,112710.0,112700.0,0.002]
[1756391507494,1.1199723,112710.0,112690.0,0.07233976]
[1756391507795,0.87673712,112700.0,112680.0,0.01838521]
[1756391508000,0.87673712,112690.0,112680.0,0.00945]
[1756391508298,0.8949898,112690.0,112680.0,0.00945]
[1756391509289,0.64435268,112690.0,112650.0,0.00945]
[1756391509496,0.0153,112660.0,112650.0,0.1038738]
[1756391509795,0.03321037,112660.0,112650.0,0.11292465]
[1756391509994,0.03321037,112660.0,112650.0,0.59858177]
[1756391510189,0.01791037,112660.0,112650.0,0.12237465]
[1756391510392,0.01791037,112660.0,112650.0,0.84858177]
[1756391510695,0.03221037,112660.0,112650.0,0.37237465]
[1756391510895,0.01691037,112660.0,112650.0,0.84858177]
[1756391511196,0.03221037,112660.0,112650.0,0.35343431]
[1756391511390,0.53284749,112660.0,112650.0,0.35343431]
[1756391511593,0.05664037,112660.0,112650.0,0.10343431]
[1756391511793,0.53284749,112660.0,112650.0,0.09398431]
[1756391512000,0.89364749,112660.0,112650.0,0.10343431]
[1756391512401,0.41744037,112660.0,112650.0,0.10343431]
[1756391512597,0.89364749,112660.0,112650.0,0.10443431]
[1756391513005,0.41744037,112660.0,112650.0,0.10443431]
[1756391513197,0.41744037,112660.0,112650.0,0.06982346]
[1756391513398,0.89364749,112660.0,112640.0,0.00945]
[1756391513701,0.03973,112650.0,112640.0,0.01511]
[1756391514304,0.3761,112650.0,112630.0,0.55497]
[1756391514599,0.85230712,112650.0,112630.0,0.8877657]
[1756391514799,0.0153,112640.0,112630.0,0.9916549]
[1756391514998,0.05760727,112650.0,112640.0,0.02456]
[1756391515393,0.53381439,112650.0,112640.0,0.02456]
[1756391516306,0.53381439,112650.0,112640.0,0.0336292]
[1756391516604,0.05760727,112650.0,112640.0,0.0336292]
[1756391516807,0.53381439,112650.0,112640.0,0.0336292]
[1756391517305,0.05760727,112650.0,112640.0,0.0336292]
[1756391517603,0.53481439,112650.0,112640.0,0.0336292]
[1756391517905,0.05860727,112650.0,112640.0,0.0241792]
[1756391518105,0.53581439,112650.0,112640.0,0.0241792]
[1756391518309,0.53581439,112650.0,112640.0,0.0336292]
[1756391519206,0.05960727,112650.0,112640.0,0.10433235]
[1756391519408,0.05960727,112650.0,112640.0,0.0241792]
[1756391519603,0.02443,112640.0,112630.0,1.2490057]
[1756391520009,0.03973,112640.0,112630.0,0.0440357]
[1756391520204,0.03973,112640.0,112630.0,0.9910557]
[1756391520409,0.03973,112640.0,112630.0,0.9022757]
[1756391520610,0.03973,112640.0,112630.0,0.89188789]
[1756391521003,0.03973,112640.0,112630.0,0.03364789]
[1756391521004,0.51593712,112640.0,112630.0,0.03364789]
[1756391521204,0.02426,112630.0,112620.0,0.86757]
[1756391521412,0.87790712,112630.0,112620.0,0.88268]
[1756391521604,0.02426,112610.0,112600.0,0.37025]
[1756391521804,0.02426,112610.0,112590.0,0.46962697]
[1756391521805,0.0409,112600.0,112590.0,0.47447394]
[1756391522108,0.51710712,112600.0,112590.0,0.48328168]
[1756391522310,0.60591072,112600.0,112590.0,0.39447038]
[1756391522504,0.1297036,112600.0,112590.0,0.48328188]
[1756391522705,0.1297117,112590.0,112580.0,0.0888194]
[1756391522908,0.1297117,112590.0,112570.0,0.00898753]
[1756391522909,0.1297194,112580.0,112570.0,0.00898753]
[1756391523110,0.02426,112570.0,112560.0,0.93992799]
[1756391523407,0.378624,112570.0,112560.0,1.39604232]
[1756391523611,0.3608,112580.0,112570.0,0.0888273]
[1756391523811,0.4017,112580.0,112560.0,0.9198315]
[1756391524007,0.38506,112580.0,112570.0,0.56503442]
[1756391524213,0.37744,112580.0,112570.0,0.81503442]
[1756391524417,0.3608,112580.0,112570.0,0.81503442]
[1756391524612,0.3588,112580.0,112570.0,0.3388273]
[1756391524811,0.3588,112580.0,112570.0,0.81503442]
[1756391524812,0.3558,112580.0,112570.0,0.81503442]
[1756391525009,0.37847312,112590.0,112580.0,0.0888194]
[1756391525010,0.3608,112590.0,112580.0,0.0888194]
[1756391525210,0.3608,112590.0,112580.0,0.108712]
[1756391525211,0.02426,112590.0,112580.0,0.108712]
[1756391525410,0.41961659,112590.0,112580.0,0.1087157]
[1756391525716,0.39535659,112590.0,112580.0,1.53378946]
[1756391525918,1.06782185,112590.0,112580.0,0.8916163]
[1756391526119,0.50842809,112590.0,112580.0,0.8916163]
[1756391526412,0.41961659,112590.0,112580.0,0.9804357]
[1756391526617,0.37871659,112590.0,112580.0,1.2304357]
[1756391526809,0.4017,112600.0,112590.0,0.0888115]
[1756391527009,0.4017,112600.0,112580.0,0.9804315]
[1756391527010,0.4905036,112600.0,112580.0,0.9804315]
[1756391527210,0.3608,112590.0,112580.0,1.53982526]
[1756391527610,0.3608,112620.0,112610.0,0.0887957]
[1756391527808,0.4017,112630.0,112620.0,0.0887878]
[1756391528011,0.37744,112640.0,112630.0,0.08878]
[1756391528218,0.37744,112640.0,112630.0,1.88321376]
[1756391528219,0.01664,112640.0,112630.0,1.88321376]
[1756391528415,0.40293727,112650.0,112640.0,0.0887721]
[1756391528416,0.41957727,112650.0,112640.0,0.0887721]
[1756391528714,0.01787727,112650.0,112640.0,0.0975018]
[1756391528919,0.01787727,112650.0,112640.0,0.65689556]
[1756391529116,0.01787727,112650.0,112640.0,0.90689556]
[1756391529722,0.41957727,112650.0,112640.0,0.9714218]
[1756391530020,0.51434147,112650.0,112640.0,0.8826897]
[1756391530220,0.02387727,112650.0,112640.0,1.53085556]
[1756391530421,0.02387727,112650.0,112640.0,2.14165556]
[1756391530422,0.006,112650.0,112640.0,2.14165556]
[1756391530619,0.40331268,112690.0,112670.0,0.0887438]
[1756391530820,0.41995268,112690.0,112670.0,1.52249756]
[1756391531021,0.39569268,112690.0,112680.0,0.64813436]
[1756391531314,0.3608,112700.0,112690.0,0.1088039]
[1756391531520,0.01766518,112710.0,112700.0,0.0887248]
[1756391531716,0.01766518,112710.0,112700.0,1.00891856]
[1756391531917,0.01766518,112710.0,112700.0,1.25891856]
[1756391532223,0.3608,112740.0,112720.0,0.0887072]
[1756391532417,0.3608,112740.0,112730.0,1.52249496]
[1756391532619,0.4494933,112740.0,112730.0,0.8744]
[1756391532821,0.0887012,112730.0,112710.0,0.56822671]
[1756391533114,0.3608,112720.0,112710.0,0.00883295]
[1756391533417,0.4495091,112720.0,112700.0,1.01767545]
[1756391533715,0.4495091,112720.0,112710.0,0.8744]
[1756391533921,0.8103091,112720.0,112710.0,0.8744]
[1756391534118,1.0603091,112720.0,112710.0,0.001]
[1756391534322,1.61970286,112720.0,112710.0,0.001]
[1756391535126,0.0887169,112710.0,112700.0,0.004]
[1756391535320,1.00891066,112710.0,112700.0,0.004]
[1756391535618,1.25891066,112710.0,112700.0,0.004]
[1756391535819,0.6995169,112710.0,112700.0,0.004]
[1756391536024,0.4495169,112710.0,112700.0,0.004]
[1756391536224,0.0887327,112690.0,112680.0,0.24404]
[1756391536527,0.0887406,112680.0,112670.0,0.56838961]
[1756391536724,0.4495406,112680.0,112670.0,1.44390961]
[1756391536914,0.4495406,112680.0,112670.0,0.00899585]
[1756391537220,0.46733521,112680.0,112670.0,0.87536]
[1756391537725,0.0887484,112670.0,112660.0,0.02007856]
[1756391538018,0.0887484,112670.0,112660.0,0.89499856]
[1756391538425,0.4495484,112670.0,112660.0,0.89499856]
[1756391538625,0.4495484,112670.0,112660.0,0.87492]
[1756391539523,0.0887721,112640.0,112630.0,0.57889221]
[1756391539721,0.4495721,112640.0,112630.0,1.45353221]
[1756391539923,0.3608,112640.0,112630.0,1.54231221]
[1756391540323,0.3608,112640.0,112630.0,1.61165818]
[1756391542028,0.3608,112640.0,112630.0,1.62068323]
[1756391542226,0.4495721,112640.0,112630.0,1.53190323]
[1756391542427,0.4495721,112640.0,112630.0,0.96276442]
[1756391542723,0.6995721,112640.0,112630.0,0.96576442]
[1756391543218,0.3608,112640.0,112630.0,1.61393808]
[1756391543417,0.3608,112640.0,112630.0,1.52515818]
[1756391543623,0.3608,112640.0,112630.0,1.05454432]
[1756391543924,0.4495721,112640.0,112630.0,0.96576442]
[1756391544128,0.6995721,112640.0,112630.0,0.96576442]
[1756391544426,1.25896586,112640.0,112630.0,0.07234597]
[1756391544619,1.25896586,112640.0,112630.0,0.003]
[1756391544822,0.6995721,112640.0,112630.0,0.09178]
[1756391545424,0.6108,112640.0,112630.0,0.09178]
[1756391545628,0.37863715,112650.0,112640.0,0.0887721]
[1756391545926,0.73943715,112650.0,112640.0,1.52156586]
[1756391546119,0.73943715,112650.0,112640.0,0.9621721]
[1756391546323,0.73943715,112650.0,112640.0,1.52156586]
[1756391546528,0.37863715,112650.0,112640.0,1.52156586]
[1756391546929,0.37963715,112650.0,112640.0,0.9621721]
[1756391547123,0.37963715,112650.0,112640.0,0.9631721]
[1756391547329,0.74043715,112650.0,112640.0,0.9631721]
[1756391547525,0.74043715,112650.0,112640.0,0.0897721]
[1756391547731,1.63859511,112650.0,112640.0,0.001]
[1756391547924,1.63859511,112650.0,112640.0,0.0897721]
[1756391548127,1.07920135,112650.0,112640.0,0.0897721]
[1756391548627,0.74043715,112650.0,112640.0,0.0897721]
[1756391548827,0.74043715,112650.0,112640.0,0.64916586]
[1756391550730,0.74043715,112650.0,112640.0,0.0897721]
[1756391552337,0.74043715,112650.0,112640.0,0.64916586]
[1756391553329,0.74043715,112650.0,112640.0,0.0897721]
[1756391553638,0.74043715,112650.0,112640.0,0.3397721]
[1756391554338,0.37963715,112650.0,112640.0,0.89916586]
[1756391554933,0.001,112650.0,112640.0,1.25996586]
[1756391555932,0.001,112650.0,112640.0,0.7005721]
[1756391556235,0.001,112650.0,112640.0,1.25996586]
[1756391557029,0.04016,112650.0,112640.0,0.4505721]
[1756391557431,0.4897242,112650.0,112640.0,0.64916586]
[1756391557748,0.4897242,112650.0,112640.0,0.9623321]
[1756391558032,0.4897242,112650.0,112640.0,1.52172586]
[1756391558242,0.7397242,112650.0,112640.0,0.001]
[1756391558429,0.7397242,112650.0,112640.0,0.87364]
[1756391559336,0.7397242,112650.0,112640.0,0.001]
[1756391559541,0.7397242,112650.0,112640.0,0.87348]
[1756391560042,0.40096,112650.0,112640.0,0.9622521]
[1756391560343,0.4897242,112650.0,112640.0,0.9622521]
[1756391560643,0.4897242,112650.0,112640.0,0.87348]
[1756391561039,1.04911796,112650.0,112640.0,0.87348]
[1756391561442,1.04911796,112650.0,112640.0,0.001]
[1756391561740,0.4897242,112650.0,112640.0,0.0897721]
[1756391563244,0.40096,112650.0,112640.0,0.0897721]
[1756391563940,0.01607,112650.0,112640.0,0.89916586]
[1756391564141,0.001,112650.0,112640.0,1.25996586]
[1756391565642,1e-07,112650.0,112640.0,2.07935962]
[1756391565838,1e-07,112650.0,112640.0,1.25996586]
[1756391566438,1e-07,112650.0,112640.0,1.52996586]
[1756391566643,1e-07,112650.0,112640.0,2.08935962]
[1756391566846,1e-07,112650.0,112640.0,1.52996586]
[1756391567144,1e-07,112650.0,112640.0,1.25996586]
[1756391567735,1e-07,112650.0,112640.0,2.10935962]
[1756391568446,1e-07,112650.0,112640.0,1.54996586]
[1756391568649,1e-07,112650.0,112640.0,1.25996586]
[1756391568841,1e-07,112650.0,112640.0,1.33959265]
[1756391569040,1e-07,112650.0,112640.0,1.08959265]
[1756391569242,1e-07,112650.0,112640.0,2.20935265]
[1756391569442,1e-07,112650.0,112640.0,2.12972586]
[1756391571247,1e-07,112650.0,112640.0,2.44972586]
[1756391571653,1e-07,112650.0,112640.0,3.00911962]
[1756391571855,1e-07,112650.0,112640.0,3.08874641]
[1756391572551,1e-07,112650.0,112640.0,2.20935265]
[1756391572755,1e-07,112650.0,112640.0,1.5703321]
[1756391572946,1e-07,112650.0,112640.0,2.12972586]
[1756391573141,1e-07,112650.0,112640.0,1.87972586]
[1756391573347,0.0240901,112650.0,112640.0,1.00996586]
[1756391573555,0.3999601,112650.0,112640.0,0.97781133]
[1756391573747,0.6499601,112650.0,112640.0,0.97781133]
[1756391576349,0.7387243,112650.0,112640.0,0.97781133]
[1756391576955,0.6499601,112650.0,112640.0,0.97781133]
[1756391577454,0.3999601,112650.0,112640.0,1.53720509]
[1756391578749,0.3999601,112650.0,112640.0,0.97781133]
[1756391580755,0.4887243,112650.0,112640.0,0.97781123]
[1756391581059,0.3999601,112650.0,112640.0,0.97781123]
[1756391581854,0.3999601,112650.0,112640.0,1.53720499]
[1756391582053,1e-07,112650.0,112640.0,1.89800499]
[1756391582253,0.01664,112670.0,112660.0,0.0887563]
[1756391582458,0.40145461,112680.0,112670.0,0.0887484]
[1756391582459,0.4003,112680.0,112670.0,0.0887484]
[1756391582659,0.4003,112680.0,112670.0,0.64814216]
[1756391583362,0.0395,112680.0,112670.0,0.0887484]
[1756391583562,0.4003,112680.0,112670.0,0.0887484]
[1756391583864,0.4023,112680.0,112670.0,0.0887484]
[1756391584364,0.4910405,112680.0,112670.0,0.0887484]
[1756391585666,0.0395,112670.0,112660.0,0.97453888]
[1756391585955,0.4003,112670.0,112660.0,0.97453888]
[1756391586359,0.7390484,112670.0,112660.0,0.10885888]
[1756391586561,0.7390484,112670.0,112660.0,0.88426748]
[1756391587358,1.29844216,112670.0,112660.0,0.88426748]
[1756391587765,1.29844216,112670.0,112660.0,0.02110748]
[1756391587961,1.29844216,112670.0,112660.0,0.88458748]
[1756391588868,1.29944216,112670.0,112660.0,0.02110748]
[1756391589058,1.29944216,112670.0,112660.0,0.10986378]
[1756391589259,0.7400484,112670.0,112660.0,0.10986378]
[1756391589759,0.7400484,112670.0,112660.0,0.10886378]
[1756391589961,0.4013,112670.0,112660.0,0.10886378]
[1756391590165,0.4013,112670.0,112660.0,0.66825754]
[1756391590665,0.001,112670.0,112660.0,1.27905754]
[1756391591065,0.05768714,112690.0,112680.0,0.0887405]
[1756391591263,0.05768714,112690.0,112680.0,1.51073426]
[1756391591766,0.01818714,112690.0,112680.0,1.89146687]
[1756391592559,0.01818714,112690.0,112680.0,2.00424223]
[1756391592863,0.01818714,112690.0,112680.0,2.25424223]
[1756391593060,0.02118714,112690.0,112680.0,2.25424223]
[1756391593255,0.01818838,112710.0,112680.0,2.25424223]
[1756391593456,0.01368698,112710.0,112700.0,1.00891856]
[1756391593661,0.00436699,112720.0,112710.0,0.0887169]
[1756391593860,0.00436699,112720.0,112710.0,3.04221827]
[1756391594061,0.4003,112750.0,112740.0,0.0886933]
[1756391594262,0.3608,112750.0,112740.0,1.51128706]
[1756391595161,0.4003,112750.0,112740.0,0.9518933]
[1756391595360,0.4003,112750.0,112740.0,1.58419373]
[1756391595567,0.4003,112750.0,112740.0,1.02479997]
[1756391595762,0.4003,112750.0,112740.0,1.02679997]
[1756391596068,0.7389855,112750.0,112740.0,0.93790667]
[1756391596969,0.3608,112750.0,112740.0,1.58599373]
[1756391598271,0.3608,112750.0,112740.0,1.58399373]
[1756391599173,0.4003,112750.0,112740.0,0.71971373]
[1756391599363,0.4003,112750.0,112740.0,1.58327373]
[1756391599567,0.4003,112750.0,112740.0,1.58307373]
[1756391599971,0.4003,112750.0,112740.0,1.02367997]
[1756391601259,0.4003,112750.0,112740.0,1.02323997]
[1756391601462,0.3608,112750.0,112740.0,1.58263373]
[1756391601668,0.41802159,112770.0,112760.0,0.0886776]
[1756391601961,0.41802159,112770.0,112760.0,1.51047136]
[1756391602169,0.41802159,112770.0,112760.0,0.9510776]
[1756391602363,0.41802159,112770.0,112760.0,1.51047136]
[1756391602364,0.39516159,112770.0,112760.0,1.51047136]
[1756391602574,0.37852159,112770.0,112760.0,1.51047136]
[1756391603068,0.37952159,112770.0,112760.0,1.51047136]
[1756391603574,0.39616159,112770.0,112760.0,1.06512182]
[1756391603774,0.41902159,112770.0,112760.0,0.10503498]
[1756391603973,0.67302159,112770.0,112760.0,0.96723498]
[1756391604272,1.32108505,112770.0,112760.0,0.87843738]
[1756391604773,0.0395,112750.0,112740.0,0.16031517]
[1756391604975,0.4003,112750.0,112740.0,1.02235517]
[1756391605670,0.4003,112750.0,112740.0,1.03802763]
[1756391606072,0.4003,112750.0,112740.0,1.03902763]
[1756391606773,0.4889854,112750.0,112740.0,0.08869913]
[1756391607075,1.0997854,112750.0,112740.0,0.93418667]
[1756391607474,1.0997854,112750.0,112740.0,0.93466667]
[1756391607673,1.0997854,112750.0,112740.0,1.02335997]
[1756391608076,1.0997854,112750.0,112740.0,1.02235997]
[1756391608274,1.0997854,112750.0,112740.0,0.96253016]
[1756391608474,1.1007854,112750.0,112740.0,0.96253016]
[1756391608675,0.7399854,112750.0,112740.0,1.05122346]
[1756391609180,0.7399854,112750.0,112740.0,0.93366667]
[1756391609479,1.66017916,112750.0,112740.0,0.07162667]
[1756391609680,0.1281933,112740.0,112730.0,0.97053237]
[1756391609876,0.4889933,112740.0,112730.0,0.97053237]
[1756391610369,0.1294491,112720.0,112710.0,0.11686206]
[1756391610571,0.8510491,112720.0,112710.0,0.97898206]
[1756391610777,1.41044286,112720.0,112710.0,0.86212]
[1756391611178,1.0761091,112720.0,112710.0,0.0887169]
[1756391611373,1.0761091,112720.0,112710.0,0.11778207]
[1756391611580,1.0761091,112720.0,112710.0,0.0887169]
[1756391611780,1.1010491,112720.0,112710.0,0.0887169]
[1756391612184,0.76234,112720.0,112710.0,0.15966712]
[1756391612380,0.76434,112720.0,112710.0,0.15966712]
[1756391612775,0.76434,112720.0,112710.0,0.07095022]
[1756391612981,0.76434,112720.0,112700.0,0.97056344]
[1756391613284,0.40154,112710.0,112700.0,0.10880344]
[1756391613579,0.40154,112710.0,112700.0,0.97028344]
[1756391614086,0.3608,112710.0,112700.0,1.7796772]
[1756391614385,0.3608,112710.0,112700.0,1.80875866]
[1756391615187,0.001,112710.0,112700.0,1.80875866]
[1756391615879,0.001,112710.0,112700.0,1.2493649]
[1756391616086,0.40254,112710.0,112700.0,0.9993649]
[1756391616581,0.3618,112710.0,112700.0,1.07095305]
[1756391616784,0.3618,112710.0,112700.0,1.88034681]
[1756391617182,0.001,112710.0,112700.0,1.88034681]
[1756391618388,0.001,112710.0,112700.0,2.24114681]
[1756391619689,0.001,112710.0,112700.0,1.07095305]
[1756391619891,0.001,112710.0,112700.0,1.63034681]
[1756391620590,0.001,112710.0,112700.0,2.24114681]
[1756391620986,0.40154,112740.0,112730.0,0.0887012]
[1756391621190,0.40154,112740.0,112730.0,1.50749496]
[1756391621391,0.3766,112740.0,112730.0,1.50749496]
[1756391622394,0.40554,112740.0,112730.0,1.50749496]
[1756391622692,0.40554,112740.0,112730.0,0.9481012]
[1756391622891,0.40554,112740.0,112730.0,1.50749496]
[1756391623292,0.3806,112740.0,112730.0,1.50749496]
[1756391623488,0.40554,112740.0,112730.0,1.50749496]
[1756391623694,0.3648,112740.0,112730.0,1.50749496]
[1756391624193,0.38674,112740.0,112730.0,1.50749496]
[1756391624394,0.40554,112740.0,112730.0,0.0887012]
[1756391624596,0.65554,112740.0,112730.0,0.0887012]
[1756391624796,0.65554,112740.0,112730.0,0.9475012]
[1756391625101,0.65554,112740.0,112730.0,0.8588]
[1756391625292,0.04074,112730.0,112720.0,0.10861002]
[1756391625489,0.40154,112730.0,112720.0,0.96725102]
[1756391625692,0.40154,112730.0,112720.0,0.87854192]
[1756391626089,0.40154,112730.0,112720.0,0.96725102]
[1756391627589,0.40454,112740.0,112730.0,0.0887012]
[1756391627788,0.3796,112740.0,112730.0,0.64809496]
[1756391627990,0.3766,112740.0,112730.0,0.64809496]
[1756391628194,0.40154,112740.0,112730.0,0.0887012]
[1756391629100,0.40354,112740.0,112730.0,0.0887012]
[1756391629394,0.40654,112740.0,112730.0,0.0887012]
[1756391630601,0.3816,112740.0,112730.0,0.64809496]
[1756391630797,0.3658,112740.0,112730.0,0.64809496]
[1756391631598,0.3816,112740.0,112730.0,0.64809496]
[1756391631795,0.40654,112740.0,112730.0,0.64809496]
[1756391632297,0.3658,112740.0,112730.0,0.64809496]
[1756391632700,0.40654,112740.0,112730.0,0.64809496]
[1756391635225,0.3658,112740.0,112730.0,0.64809496]
[1756391635807,0.0208,112740.0,112730.0,0.64809496]
[1756391636007,0.04574,112740.0,112730.0,0.64809496]
[1756391636206,0.40654,112740.0,112730.0,0.64809496]
[1756391637699,0.3816,112740.0,112730.0,0.64809496]
[1756391637902,0.40654,112740.0,112730.0,0.64809496]
[1756391638506,0.40654,112740.0,112730.0,0.9439412]
[1756391639011,0.4952333,112740.0,112730.0,0.9439412]
[1756391639506,0.40654,112740.0,112730.0,0.9439412]
[1756391640509,0.40654,112740.0,112730.0,1.50333496]
[1756391640912,0.3816,112740.0,112730.0,1.50333496]
[1756391641211,0.40634,112740.0,112730.0,1.50333496]
[1756391642112,0.40634,112740.0,112730.0,0.9439412]
[1756391642412,0.40634,112740.0,112730.0,1.50333496]
[1756391642706,0.3816,112740.0,112730.0,1.50333496]
[1756391642907,0.3816,112740.0,112730.0,1.75333496]
[1756391642908,0.005,112740.0,112730.0,1.75333496]
[1756391643305,0.005,112740.0,112730.0,2.38413496]
[1756391643506,0.005,112740.0,112730.0,2.11413496]
[1756391643701,0.005,112740.0,112730.0,2.41413496]
[1756391644003,0.005,112740.0,112730.0,2.36413496]
[1756391644812,0.0161,112760.0,112750.0,0.0886854]
[1756391645011,0.41967289,112770.0,112760.0,0.0886776]
[1756391645213,0.41967289,112770.0,112760.0,0.64807136]
[1756391645512,0.41967289,112770.0,112760.0,0.0886776]
[1756391646106,0.05887289,112770.0,112760.0,0.0886776]
[1756391646302,0.41967289,112770.0,112760.0,0.0886776]
[1756391647113,0.42367289,112770.0,112760.0,0.0886776]
[1756391647503,0.004,112770.0,112760.0,0.64807136]
[1756391647708,0.004,112770.0,112760.0,0.11703417]
[1756391647902,0.04484,112770.0,112760.0,1.03722793]
[1756391648208,0.0201,112770.0,112760.0,0.67642793]
[1756391648414,0.004,112770.0,112760.0,0.67642793]
[1756391648808,0.0201,112770.0,112760.0,0.11703417]
[1756391649002,0.40164,112770.0,112760.0,0.18637822]
[1756391650115,0.40164,112770.0,112760.0,0.18737822]
[1756391650409,0.66963073,112770.0,112760.0,0.09870062]
[1756391650813,1.22902449,112770.0,112760.0,0.09870062]
[1756391651703,1.31769419,112770.0,112760.0,0.09870062]
[1756391652709,1.31869419,112770.0,112760.0,0.09770062]
[1756391652910,1.29395419,112770.0,112750.0,0.970622]
[1756391653111,0.40164,112760.0,112750.0,0.970622]
[1756391653812,0.37979073,112770.0,112750.0,0.970622]
[1756391653813,0.3618,112770.0,112760.0,0.0886776]
[1756391654025,0.001,112770.0,112760.0,0.64807136]
[1756391654406,0.002,112770.0,112760.0,0.89807136]
[1756391655008,0.002,112770.0,112760.0,0.927036]
[1756391655519,0.0181,112770.0,112760.0,0.927036]
[1756391655819,0.40164,112770.0,112760.0,0.927036]
[1756391656118,0.04084,112770.0,112760.0,0.927036]
[1756391656619,0.04084,112770.0,112760.0,1.05162056]
[1756391657020,0.4903097,112770.0,112760.0,1.05162056]
[1756391657317,0.40164,112770.0,112760.0,1.05162056]
[1756391658017,0.40164,112770.0,112760.0,1.61101432]
[1756391658217,0.04084,112770.0,112760.0,1.61101432]
[1756391658417,0.40164,112770.0,112760.0,1.61101432]
[1756391658817,0.04084,112770.0,112760.0,1.61101432]
[1756391659420,0.40164,112770.0,112760.0,1.61101432]
[1756391659722,0.40164,112770.0,112760.0,1.05162056]
[1756391661324,0.40164,112770.0,112760.0,0.18966056]
[1756391661513,0.40164,112770.0,112760.0,1.05042056]
[1756391664022,0.40164,112770.0,112760.0,1.60981432]